bitfinex/quotes_ETHUSD_20241223
["timestamp","ask_amount","ask_price","bid_price","bid_amount"]
[1734922099391,0.7666,3272.8,3272.0,1.15399755]
[1734922099593,0.7666,3272.8,3272.0,3.05622]
[1734922099894,0.04156531,3272.7,3271.8,3.05633]
[1734922100096,0.04156531,3272.7,3271.5,0.77199544]
[1734922100295,0.04156531,3272.7,3271.7,3.05648]
[1734922100456,0.04156531,3272.7,3271.5,0.77199544]
[1734922100816,0.7666,3272.8,3272.0,3.05622]
[1734922101163,3.05447,3273.9,3271.6,1.35250954]
[1734922101164,0.7666,3273.4,3272.7,3.05557]
[1734922101364,0.61837504,3274.2,3272.3,0.7731]
[1734922101593,0.04104431,3273.3,3272.3,9.7531]
[1734922101800,0.7666,3273.5,3272.4,0.97531]
[1734922102316,0.7666,3273.5,3272.5,3.05574]
[1734922102460,0.7666,3273.5,3272.4,0.97531]
[1734922102799,0.7666,3273.5,3272.4,4.03113]
[1734922102800,0.04120261,3273.4,3272.4,4.03113]
[1734922103157,3.05467,3273.7,3272.4,4.03113]
[1734922103359,3.05467,3273.7,3272.5,1.378423]
[1734922103555,0.04120261,3273.6,3272.5,1.378423]
[1734922104094,3.05467,3273.7,3272.5,1.378423]
[1734922104269,0.04120261,3273.5,3272.3,3.82897]
[1734922104596,3.05467,3273.7,3272.3,3.82897]
[1734922104754,0.04120261,3273.4,3272.3,3.82897]
[1734922104956,0.04120261,3273.3,3272.3,3.82897]
[1734922105175,3.05474,3273.6,3272.3,3.82897]
[1734922105513,0.04120261,3273.5,3271.4,9.7901]
[1734922105822,3.05549,3272.8,3271.5,3.2224246]
[1734922106110,0.04119601,3273.4,3271.5,0.32174671]
[1734922106313,0.7939,3272.6,3271.5,0.32174671]
[1734922106829,0.04119601,3272.5,3271.5,0.32174671]
[1734922106977,0.04119601,3272.5,3271.6,3.0566]
[1734922107309,0.7939,3273.0,3271.5,0.32174671]
[1734922107511,0.04119601,3272.4,3271.8,3.05634]
[1734922107713,0.7939,3273.0,3271.9,0.305634]
[1734922107928,3.84921,3273.0,3271.9,0.305634]
[1734922108086,0.04101134,3272.9,3271.8,3.0564]
[1734922108889,0.04101134,3272.9,3271.6,0.55]
[1734922109085,0.04101134,3272.9,3272.8,3.05548]
[1734922109313,0.7939,3273.6,3272.7,0.8101]
[1734922109483,3.84866,3273.6,3272.4,3.0]
[1734922109686,0.03949919,3273.5,3272.5,1.27901]
[1734922110086,0.7939,3273.6,3272.5,1.27901]
[1734922110287,3.84864,3273.6,3272.5,1.27901]
[1734922111325,0.7939,3273.6,3272.5,4.33473]
[1734922111528,0.7939,3273.6,3272.6,3.05566]
[1734922111708,0.7939,3273.6,3272.7,0.433467]
[1734922111916,0.7939,3273.6,3272.8,3.05548]
[1734922112086,0.03949919,3273.5,3272.8,3.05548]
[1734922112289,0.03949919,3273.5,3272.5,1.27901]
[1734922112483,0.03949919,3273.5,3271.0,1.27091415]
[1734922112484,0.7939,3273.6,3271.9,0.8249]
[1734922112712,3.05477,3273.6,3271.9,0.8249]
[1734922112932,0.81765532,3273.5,3271.9,0.8249]
[1734922113098,0.81765532,3273.5,3272.0,3.05617]
[1734922113293,3.05504,3273.3,3272.0,3.05617]
[1734922113489,3.05512,3273.2,3272.1,0.388107]
[1734922113726,3.09497532,3273.2,3272.1,0.388107]
[1734922114530,0.03985532,3273.2,3272.1,0.388107]
[1734922114699,0.03985532,3273.2,3272.0,3.05623]
[1734922114905,0.7778,3273.5,3272.2,3.05598]
[1734922115115,0.7778,3273.5,3272.3,3.05594]
[1734922115316,0.03990152,3273.4,3272.3,3.05594]
[1734922115631,0.03990152,3273.4,3272.4,3.05583]
[1734922115830,0.03990152,3273.4,3272.5,0.305583]
[1734922117590,0.8214,3273.0,3271.9,1.5955743]
[1734922117846,0.8214,3273.0,3271.6,0.7648]
[1734922118495,3.05557,3272.8,3271.6,0.7648]
[1734922118699,0.03863742,3272.9,3271.6,0.7648]
[1734922119024,0.8214,3273.0,3271.8,3.05636]
[1734922119236,0.8214,3273.0,3271.9,0.305636]
[1734922119621,3.0556,3272.7,3271.5,3.37365422]
[1734922120157,0.03844615,3272.6,3271.9,3.05632]
[1734922120304,0.03844615,3272.6,3272.0,3.05622]
[1734922120504,0.8214,3273.0,3272.2,3.05601]
[1734922120948,0.03793167,3272.9,3272.2,3.05601]
[1734922121155,0.03793167,3272.9,3271.5,0.31704422]
[1734922121156,0.03793167,3272.9,3271.6,0.7597]
[1734922121446,0.03793167,3272.9,3271.5,0.31704422]
[1734922121447,3.05637,3271.9,3271.5,0.1657346]
[1734922121627,0.7813,3271.8,3271.5,0.1657346]
[1734922122027,0.03810977,3271.7,3271.5,0.1657346]
[1734922122213,0.7813,3271.8,3271.5,0.1657346]
[1734922122547,3.0566,3271.6,3271.5,0.1657346]
[1734922122996,3.8379,3271.6,3271.5,0.1657346]
[1734922123190,3.87529066,3271.6,3271.5,0.1657346]
[1734922123396,0.81869066,3271.6,3271.5,0.1657346]
[1734922123647,3.05745,3270.7,3269.6,1.27091415]
[1734922123852,0.7813,3270.5,3269.7,0.31704047]
[1734922124065,3.83896,3270.5,3269.7,0.31704047]
[1734922124271,0.7813,3270.5,3269.7,0.31704047]
[1734922124558,0.7813,3270.0,3269.0,3.05901]
[1734922124760,0.03637422,3270.4,3268.9,1.74868876]
[1734922124761,0.7813,3270.5,3268.9,1.27091415]
[1734922124913,0.7813,3270.5,3269.6,3.05843]
[1734922125110,0.03585256,3270.4,3270.2,3.05789]
[1734922125309,0.8237,3271.6,3270.4,3.05767]
[1734922125509,0.8237,3271.6,3270.1,8.98]
[1734922125767,0.8237,3271.6,3270.5,3.05763]
[1734922125929,3.05548,3272.9,3270.2,3.05791]
[1734922125930,0.7588,3272.3,3270.8,8.98]
[1734922126112,0.7588,3272.3,3270.9,3.95522]
[1734922126470,0.7588,3272.3,3270.9,0.898]
[1734922126609,0.7588,3272.3,3270.8,8.98]
[1734922126610,3.05643,3271.8,3270.8,8.98]
[1734922126809,3.05548,3272.9,3270.6,3.82073]
[1734922126810,0.7588,3271.7,3270.6,3.82073]
[1734922127239,0.7588,3271.7,3270.9,3.05721]
[1734922127861,0.7588,3271.7,3270.6,0.7632]
[1734922128154,0.7588,3271.7,3270.8,3.0]
[1734922128369,0.7588,3271.7,3271.0,3.05709]
[1734922128573,6.05537,3273.0,3271.5,3.05669]
[1734922128777,0.8132,3272.9,3271.5,3.05669]
[1734922128913,0.61238354,3272.7,3271.3,0.78]
[1734922129262,0.61238354,3272.7,3269.9,1.63062878]
[1734922129263,0.8132,3271.9,3270.6,3.0]
[1734922129429,3.05644,3271.8,3270.7,0.605755]
[1734922129629,0.8132,3271.9,3270.7,0.605755]
[1734922129826,0.8132,3271.9,3270.7,3.05743]
[1734922130033,0.8132,3271.9,3270.4,9.76]
[1734922130267,3.05653,3271.7,3270.5,3.0]
[1734922130749,0.8132,3271.9,3270.5,3.0]
[1734922131047,0.8132,3271.9,3270.7,3.05742]
[1734922131249,0.8132,3271.9,3270.8,0.305742]
[1734922132065,3.86954,3271.9,3270.8,0.305742]
[1734922132268,3.86954,3271.9,3270.5,3.0]
[1734922132414,3.86954,3271.9,3270.6,3.0]
[1734922133064,3.0,3271.8,3270.5,3.05762]
[1734922133268,0.03358782,3271.8,3270.2,0.6065076]
[1734922133411,3.0571,3271.1,3270.0,0.7708]
[1734922133612,3.0571,3271.1,3269.7,14.24370352]
[1734922133839,0.8135,3271.0,3269.9,1.27091415]
[1734922134118,0.03358782,3270.9,3269.9,1.27091415]
[1734922134915,3.09084782,3270.9,3269.9,1.27091415]
[1734922135214,3.09084782,3270.9,3269.7,0.305843]
[1734922135657,3.05737,3270.8,3269.7,0.305843]
[1734922135856,2.73330126,3270.8,3269.7,0.305843]
[1734922136021,0.03330396,3270.7,3269.7,0.305843]
[1734922136439,3.05749,3270.7,3269.7,0.305843]
[1734922136620,0.03330396,3270.6,3269.5,0.15002111]
[1734922136968,0.8135,3271.0,3270.1,3.0]
[1734922137176,3.05688,3271.4,3270.2,3.0]
[1734922137177,0.8135,3271.4,3270.2,3.0]
[1734922137468,0.8135,3271.4,3270.0,0.77]
[1734922137618,0.03330396,3271.3,3270.3,3.0]
[1734922137819,0.8135,3271.4,3270.7,3.05743]
[1734922138260,0.8135,3271.4,3270.5,3.05761]
[1734922138447,0.8135,3271.4,3270.6,3.0]
[1734922138643,0.8135,3271.4,3270.7,0.605761]
[1734922139783,0.8135,3271.4,3270.7,3.605761]
[1734922140072,3.218,3273.6,3271.2,3.05697]
[1734922140073,0.8178,3271.8,3271.2,3.05697]
[1734922140271,0.8178,3271.8,3270.9,0.7698]
[1734922140426,0.8178,3271.8,3271.0,0.97498]
[1734922140621,0.8178,3271.8,3271.2,3.05698]
[1734922140872,0.25,3273.7,3271.5,3.05666]
[1734922140873,0.8178,3272.4,3271.5,3.05666]
[1734922141027,0.8178,3272.4,3271.5,3.0]
[1734922141356,0.7738,3271.4,3270.4,8.98]
[1734922141567,0.7738,3271.4,3270.2,3.0]
[1734922141721,3.05615,3272.1,3270.2,3.0]
[1734922141722,0.7543,3270.8,3270.7,1.27091415]
[1734922141918,3.81165,3270.8,3270.7,1.27091415]
[1734922142122,3.84540282,3270.8,3270.7,1.27091415]
[1734922142894,3.84540282,3270.8,3269.5,12.03854]
[1734922143109,0.78805282,3270.8,3269.6,1.34635939]
[1734922143259,3.05756,3270.6,3269.6,1.34635939]
[1734922143606,0.61551083,3271.0,3269.4,1.27091415]
[1734922143607,0.7543,3270.4,3269.4,1.27091415]
[1734922143822,0.7543,3269.5,3269.4,1.27091415]
[1734922144119,0.7543,3269.5,3269.2,1.27091415]
[1734922144120,3.05875,3269.3,3269.2,1.27091415]
[1734922144452,7.36305,3269.3,3269.2,1.27091415]
[1734922144897,7.39587186,3269.3,3269.2,1.27091415]
[1734922145611,7.39587186,3269.3,3267.7,1.27091415]
[1734922145612,0.78712186,3269.3,3267.7,1.27091415]
[1734922146114,3.05915,3268.9,3267.7,1.27091415]
[1734922146609,0.03228666,3268.8,3267.7,1.27091415]
[1734922146807,0.03228666,3268.8,3267.5,9.13973533]
[1734922147015,0.03228666,3268.8,3268.1,3.05987]
[1734922147320,0.03151312,3268.7,3268.3,3.54797506]
[1734922147777,0.7543,3269.3,3268.3,3.54797506]
[1734922147778,0.7543,3269.3,3268.4,3.05958]
[1734922147957,0.7543,3269.3,3268.3,0.48829506]
[1734922148156,3.05904,3269.0,3268.3,0.1657346]
[1734922148384,3.05889,3269.2,3268.3,0.1657346]
[1734922148589,0.03078645,3268.9,3268.3,0.1657346]
[1734922148751,0.7543,3269.3,3268.3,0.1657346]
[1734922148958,0.03077984,3268.8,3268.3,0.1657346]
[1734922149235,0.7543,3269.3,3268.4,3.05955]
[1734922149502,0.7543,3269.3,3268.5,0.32252846]
[1734922149710,3.05887,3269.2,3268.3,0.1657346]
[1734922150303,3.05914,3268.9,3268.3,0.1657346]
[1734922150531,3.05923,3268.8,3268.3,0.1657346]
[1734922150709,0.7543,3269.3,3268.3,0.1657346]
[1734922150909,3.05952,3268.5,3268.3,0.1657346]
[1734922151076,0.7546,3268.4,3268.3,0.1657346]
[1734922151276,3.78537984,3268.4,3268.3,0.1657346]
[1734922151482,3.78537984,3268.4,3268.3,4.6e-06]
[1734922151680,4.33537984,3268.4,3268.3,4.6e-06]
[1734922151877,4.39901466,3268.4,3268.3,4.6e-06]
[1734922152593,3.78537984,3268.4,3268.3,4.6e-06]
[1734922152797,0.78537984,3268.4,3268.3,4.6e-06]
[1734922154100,3.78537984,3268.4,3268.3,4.6e-06]
[1734922155389,4.33537984,3268.4,3268.3,4.6e-06]
[1734922156501,3.78537984,3268.4,3268.3,4.6e-06]
[1734922160416,4.33537984,3268.4,3268.3,4.6e-06]
[1734922161545,7.39497984,3268.4,3268.3,4.6e-06]
[1734922163361,7.39225,3267.6,3267.5,4.6e-06]
[1734922163837,7.42091312,3267.6,3267.5,4.6e-06]
[1734922163999,6.87091312,3267.6,3267.5,4.6e-06]
[1734922166139,0.02866312,3267.6,3267.5,4.6e-06]
[1734922166519,4.46476691,3268.1,3267.5,4.6e-06]
[1734922166705,0.02807405,3267.6,3267.5,4.6e-06]
[1734922166905,3.06019,3267.8,3267.5,4.6e-06]
[1734922167109,0.02807405,3267.6,3267.5,4.6e-06]
[1734922167317,3.06035,3267.6,3267.5,4.6e-06]
[1734922167521,6.87914837,3267.6,3267.5,4.6e-06]
[1734922168031,7.42914837,3267.6,3267.5,4.6e-06]
[1734922168764,6.87914837,3267.6,3267.5,4.6e-06]
[1734922169721,7.4960062,3267.6,3267.5,4.6e-06]
[1734922171160,6.87914837,3267.6,3267.5,4.6e-06]
[1734922171477,3.87914837,3267.6,3267.5,4.6e-06]
[1734922172326,3.08874837,3267.6,3267.5,4.6e-06]
[1734922175575,0.02839837,3267.6,3267.5,4.6e-06]
[1734922175786,0.02839837,3267.6,3267.5,0.8150046]
[1734922176086,3.05932,3268.7,3267.5,3.8754346]
[1734922176240,0.60231914,3268.5,3267.5,0.8150046]
[1734922176573,0.02736573,3268.4,3267.5,0.8150046]
[1734922177559,0.02736573,3268.4,3267.7,3.06024]
[1734922177928,3.05923,3268.8,3267.7,3.06024]
[1734922178130,0.8222,3269.6,3267.9,8.98]
[1734922178352,0.02760145,3268.7,3268.2,8.98]
[1734922178559,3.05834,3269.8,3268.5,3.0595]
[1734922178869,0.8222,3270.0,3268.4,8.98]
[1734922178870,0.8222,3270.0,3268.6,0.7896]
[1734922179173,0.8222,3270.9,3269.4,0.7896]
[1734922179468,0.60126048,3270.8,3269.4,0.7896]
[1734922179831,3.05756,3270.6,3269.4,0.7896]
[1734922180032,3.05756,3270.6,3269.5,0.384835]
[1734922180232,3.05782,3270.3,3269.4,0.7896]
[1734922180835,0.02760145,3270.2,3269.4,0.7896]
[1734922181444,3.87954,3270.9,3269.4,0.7896]
[1734922181844,6.08607275,3270.8,3269.5,3.05855]
[1734922182051,0.02871275,3270.8,3269.5,0.7816]
[1734922182245,0.7792,3271.3,3269.6,9.95616]
[1734922182452,3.08569275,3271.2,3269.6,9.95616]
[1734922182650,3.68946563,3271.2,3269.5,0.7816]
[1734922182874,3.68946563,3271.2,3268.8,3.7816]
[1734922182875,3.05839,3269.7,3268.8,3.7816]
[1734922183076,3.05819,3269.9,3268.8,0.7816]
[1734922183274,3.05875,3269.4,3268.8,0.7816]
[1734922183654,3.05877,3269.3,3268.8,0.7816]
[1734922183972,0.02781599,3269.3,3268.8,0.7816]
[1734922184765,3.05851,3269.6,3268.8,0.7816]
[1734922185088,3.05869,3269.4,3268.8,0.7816]
[1734922185455,3.67060181,3269.9,3268.8,0.7816]
[1734922185456,0.02726709,3269.3,3268.8,0.7816]
[1734922185655,3.0,3270.1,3269.0,8.98]
[1734922185856,3.0,3270.1,3269.1,0.898]
[1734922186054,0.02726709,3270.0,3269.1,0.898]
[1734922186564,0.02726709,3270.0,3268.7,3.05928]
[1734922186565,3.0584,3269.7,3268.5,0.8049]
[1734922186766,3.05885,3269.2,3268.5,0.8049]
[1734922186965,3.05923,3268.8,3268.5,0.8049]
[1734922187196,3.05923,3268.8,3268.0,0.898]
[1734922187197,0.02804116,3269.1,3268.0,0.8049]
[1734922187402,3.05961,3268.4,3268.0,0.8049]
[1734922187709,3.05979,3268.2,3268.0,0.8049]
[1734922187871,0.02801471,3268.3,3268.0,0.8049]
[1734922188057,3.05955,3268.5,3268.0,0.8049]
[1734922188259,0.02801471,3268.4,3268.0,0.8049]
[1734922188693,0.8148,3269.4,3268.0,0.8049]
[1734922188900,3.0,3269.4,3268.3,3.05969]
[1734922189211,0.02767067,3269.3,3268.5,8.98]
[1734922189620,3.05886,3269.2,3268.5,8.98]
[1734922189820,0.02767067,3269.2,3268.5,8.98]
[1734922190297,3.08662067,3269.1,3268.4,0.7599]
[1734922191315,0.02767067,3269.1,3268.4,0.7599]
[1734922191667,3.05804,3270.1,3268.8,12.03922]
[1734922191924,3.08670143,3270.1,3269.0,0.7518]
[1734922192286,3.05804,3270.1,3269.0,0.7518]
[1734922192668,3.05809,3270.1,3269.0,0.7518]
[1734922192871,3.0,3270.0,3269.0,0.7518]
[1734922193236,3.0,3269.9,3269.0,0.7518]
[1734922193401,3.05848,3269.6,3269.0,0.7518]
[1734922193565,3.05876,3269.3,3268.4,0.7719]
[1734922193765,3.05876,3269.3,3268.4,1.74709]
[1734922194389,6.05824,3269.9,3268.4,1.74709]
[1734922194592,3.0,3270.1,3268.6,0.7682]
[1734922194927,3.82415,3270.7,3269.4,8.98]
[1734922195081,3.05701,3271.2,3269.7,9.7886]
[1734922195082,1.88298344,3270.9,3269.7,9.7886]
[1734922195281,1.88298344,3270.9,3269.8,1.284704]
[1734922195680,3.05735,3270.8,3269.3,0.8086]
[1734922195895,0.7667,3270.3,3269.3,0.8086]
[1734922196079,3.05833,3269.8,3269.3,0.8086]
[1734922196430,0.7667,3270.3,3268.8,4.27091415]
[1734922196431,3.05849,3269.6,3268.8,4.27091415]
[1734922196783,3.05822,3269.9,3268.8,1.27091415]
[1734922196983,3.05794,3270.2,3269.0,0.7873]
[1734922197597,3.0,3270.4,3269.2,8.98]
[1734922197782,3.0,3270.4,3269.3,0.7873]
[1734922198294,3.05771,3270.5,3269.3,0.7873]
[1734922198295,3.0,3270.5,3269.3,0.7873]
[1734922198503,3.05772,3270.5,3269.3,3.84605]
[1734922198717,0.8017,3270.7,3269.4,1.282605]
[1734922198718,3.05783,3270.3,3269.4,1.282605]
[1734922199074,0.55,3270.6,3269.3,0.7873]
[1734922199413,3.05877,3269.3,3268.8,0.9399196]
[1734922199651,6.05806,3270.1,3268.8,0.7873]
[1734922199817,3.0,3270.1,3268.8,0.7873]
[1734922200015,0.8017,3270.5,3268.8,0.7727]
[1734922200320,0.8017,3270.5,3268.7,12.96138614]
[1734922200321,3.05745,3270.7,3269.2,8.98]
[1734922200520,3.05745,3270.7,3269.5,3.05853]
[1734922200745,3.88702,3270.9,3269.6,3.05847]
[1734922201055,3.05764,3270.5,3269.4,0.8266]
[1734922201266,0.8297,3270.9,3269.4,0.8266]
[1734922201476,3.05773,3270.4,3269.4,0.8266]
[1734922201973,3.0575,3270.7,3269.4,3.88526]
[1734922202138,3.05705,3271.2,3270.0,3.0581]
[1734922202338,3.05705,3271.2,3270.2,0.7729]
[1734922203016,3.0566,3271.6,3270.2,3.83081]
[1734922203280,0.7931,3271.7,3270.2,0.7729]
[1734922203413,3.05766,3270.5,3269.7,8.98]
[1734922203622,3.05814,3270.0,3269.7,0.7729]
[1734922203920,3.05754,3270.6,3269.3,0.7729]
[1734922204157,3.05786,3270.3,3269.3,0.7729]
[1734922204355,3.05785,3270.3,3269.3,0.7729]
[1734922204733,3.0,3270.5,3269.3,0.7729]
[1734922205347,6.05769,3270.5,3269.3,0.7729]
[1734922206050,6.05769,3270.5,3269.4,0.383173]
[1734922206231,6.05769,3270.5,3269.3,0.7729]
[1734922206232,3.05784,3270.3,3269.3,0.7729]
[1734922206869,3.05796,3270.2,3269.3,0.7729]
[1734922207171,3.05844,3269.7,3269.3,0.7729]
[1734922207353,3.05858,3269.5,3269.3,0.7729]
[1734922207855,1.38948566,3270.8,3269.5,3.05854]
[1734922208162,1.38948566,3270.8,3268.7,3.0]
[1734922208163,3.05688,3271.3,3269.6,13.114314]
[1734922208464,3.05728,3270.9,3269.6,13.114314]
[1734922208666,3.05706,3271.2,3269.9,0.7593]
[1734922208970,0.60176856,3272.5,3270.6,9.7393]
[1734922208971,2.52000978,3272.1,3270.6,9.7393]
[1734922209265,1.68265188,3272.5,3271.0,0.7593]
[1734922209452,1.68265188,3272.5,3271.0,3.81645]
[1734922209453,3.05604,3272.3,3271.0,3.81645]
[1734922209658,3.05628,3272.0,3271.0,0.7593]
[1734922209843,0.8293,3272.5,3271.1,8.98]
[1734922210048,3.05602,3272.3,3271.2,9.95393]
[1734922210372,3.05586,3272.4,3271.4,9.7565]
[1734922210559,1.39193041,3272.9,3271.4,9.7565]
[1734922210754,3.0561,3272.2,3271.4,9.7565]
[1734922211266,3.05581,3272.5,3271.4,9.7565]
[1734922211448,3.05578,3272.5,3271.5,9.95565]
[1734922211641,3.05591,3272.4,3271.5,9.95565]
[1734922211846,0.7853,3272.9,3271.5,9.95565]
[1734922212060,3.05591,3272.4,3271.5,9.95565]
[1734922212368,3.05591,3272.4,3271.0,3.05709]
[1734922212369,0.7853,3272.1,3270.7,0.7765]
[1734922212530,3.05691,3271.3,3270.7,0.7765]
[1734922212731,3.05729,3270.9,3270.7,0.7765]
[1734922213056,3.05729,3270.9,3270.1,0.7765]
[1734922213057,3.05764,3270.5,3270.1,0.7765]
[1734922213241,3.05698,3271.2,3270.1,0.7765]
[1734922213446,3.05787,3270.3,3270.1,0.7765]
[1734922213765,3.0576,3270.6,3270.1,0.7765]
[1734922214343,3.05738,3270.8,3270.1,1.17119047]
[1734922214578,1.17429988,3271.6,3270.1,1.17119047]
[1734922214743,3.0,3271.2,3270.1,0.7765]
[1734922214943,3.05704,3271.2,3270.1,0.7765]
[1734922215144,3.0,3271.1,3270.1,0.7765]
[1734922215443,3.0,3271.1,3270.6,3.05745]
[1734922215646,1.58522052,3275.4,3269.8,8.98]
[1734922215647,0.61260841,3272.1,3270.5,8.98]
[1734922215845,3.05637,3271.9,3270.7,3.05743]
[1734922216150,0.61260841,3272.1,3270.9,8.98]
[1734922216364,0.61260841,3272.1,3271.1,8.98]
[1734922216566,3.05605,3272.2,3271.2,0.7931]
[1734922216766,3.05579,3272.5,3271.3,9.95731]
[1734922216969,3.05524,3273.1,3271.5,8.98]
[1734922217165,3.0552,3273.1,3271.4,9.7731]
[1734922217366,3.0567,3271.5,3271.4,0.7931]
[1734922217571,3.0563,3272.0,3271.4,0.7931]
[1734922217751,0.7956,3272.7,3271.4,0.7931]
[1734922217952,3.05597,3272.3,3271.4,0.7931]
[1734922218145,0.7956,3273.3,3271.4,0.7931]
[1734922218346,3.05643,3271.8,3271.4,0.7931]
[1734922218567,3.0567,3271.5,3271.4,0.7931]
[1734922218766,3.05707,3271.1,3271.0,0.7695]
[1734922218969,3.7956,3271.8,3270.5,0.7695]
[1734922219184,3.05745,3270.7,3270.5,0.7695]
[1734922219342,3.0,3271.2,3270.5,0.7695]
[1734922219561,3.0,3271.6,3270.5,0.7695]
[1734922219747,0.7956,3271.8,3270.5,0.7695]
[1734922219748,3.0,3271.5,3270.5,0.7695]
[1734922220165,3.05754,3270.6,3270.5,0.7695]
[1734922220373,3.05764,3270.5,3270.1,0.7695]
[1734922220565,3.05699,3271.2,3270.1,0.97354142]
[1734922220864,3.05664,3271.6,3270.4,0.7695]
[1734922221058,3.0567,3271.5,3270.4,0.7695]
[1734922221487,3.05699,3271.2,3270.4,9.7495]
[1734922221803,0.7956,3272.5,3270.9,9.7495]
[1734922222001,0.7956,3272.5,3270.5,0.97495]
[1734922222002,3.05585,3272.5,3271.3,0.7695]
[1734922222559,3.85105,3272.9,3271.4,8.98]
[1734922222560,0.7956,3272.9,3271.4,8.98]
[1734922222975,3.0561,3272.2,3271.4,8.98]
[1734922223164,3.05624,3272.0,3271.4,8.98]
[1734922223571,0.7956,3272.9,3271.4,9.95495]
[1734922223803,3.0,3272.7,3271.4,9.95495]
[1734922223965,3.05633,3271.9,3271.4,9.95495]
[1734922224486,3.05664,3271.6,3271.3,0.7695]
[1734922225593,0.7675,3272.1,3271.3,0.7695]
[1734922225766,0.7675,3272.1,3270.8,0.7502]
[1734922225971,3.05675,3271.5,3270.8,0.7502]
[1734922226168,3.05675,3271.5,3270.8,2.02322]
[1734922226592,0.6084537,3272.2,3270.8,2.02322]
[1734922226593,3.0,3272.2,3270.8,2.02322]
[1734922227794,0.55,3272.1,3270.8,0.7502]
[1734922227989,3.05726,3270.9,3270.2,8.98]
[1734922228188,3.05772,3270.5,3270.3,0.8204]
[1734922228393,3.05772,3270.4,3270.1,1.27091415]
[1734922228757,0.7552,3271.4,3270.1,1.66999462]
[1734922228957,3.0,3271.8,3270.1,1.66999462]
[1734922228958,3.85596,3271.7,3270.2,0.8082]
[1734922229272,3.85596,3271.7,3270.5,0.8082]
[1734922229273,3.0,3271.7,3270.5,0.8082]
[1734922229471,0.7994,3272.1,3270.5,0.8082]
[1734922229472,3.0,3271.6,3270.5,0.8082]
[1734922229796,3.05731,3270.9,3270.5,0.8082]
[1734922230466,3.68331896,3272.0,3270.5,0.8082]
[1734922230467,3.68336896,3272.0,3270.5,0.8082]
[1734922230667,3.05718,3271.0,3270.5,0.8082]
[1734922231388,3.0,3271.5,3270.5,0.8082]
[1734922231609,3.0,3271.2,3270.5,0.8082]
[1734922231900,3.0571,3271.1,3270.5,0.8082]
[1734922232063,3.10820474,3271.1,3270.5,0.8082]
[1734922232265,3.05718,3271.0,3270.5,0.8082]
[1734922232459,0.05109814,3270.9,3270.5,0.8082]
[1734922232696,3.05727,3270.9,3270.5,0.8082]
[1734922233088,0.05109814,3270.8,3270.5,0.8082]
[1734922233499,3.68344532,3271.7,3269.9,0.7892]
[1734922233500,0.7513,3271.0,3269.9,0.7892]
[1734922233707,3.05857,3269.5,3269.4,0.7892]
[1734922233907,3.05866,3269.4,3269.3,1.27091415]
[1734922234209,3.10964581,3269.4,3269.3,1.27091415]
[1734922234499,0.05098581,3269.4,3269.3,1.27091415]
[1734922234700,3.0,3269.9,3269.3,1.27091415]
[1734922234701,3.05861,3269.5,3269.3,1.27091415]
[1734922235089,3.81119754,3269.4,3269.3,1.27091415]
[1734922235293,3.81119754,3269.4,3268.5,3.75639369]
[1734922235294,3.05932,3268.7,3268.1,0.8125]
[1734922235489,0.7608,3269.4,3268.1,0.8125]
[1734922235694,3.0,3269.1,3268.0,1.27091415]
[1734922235995,3.05988,3268.1,3268.0,1.27091415]
[1734922236189,3.0,3268.8,3268.0,1.27091415]
[1734922236395,0.04990814,3269.0,3267.2,12.0407]
[1734922236396,1.3635,3269.0,3267.2,2.03351415]
[1734922236572,3.05996,3268.1,3267.2,2.03351415]
[1734922237133,0.04990814,3268.0,3267.2,2.03351415]
[1734922237280,0.04990814,3268.0,3267.6,0.7626]
[1734922237477,3.0595,3268.6,3267.6,0.7626]
[1734922237690,3.98138614,3269.6,3267.7,8.98]
[1734922237691,0.8135,3269.4,3267.7,8.98]
[1734922237891,0.04973614,3268.5,3268.0,0.7626]
[1734922238092,3.05855,3269.6,3268.4,0.7626]
[1734922238293,4.94137344,3269.7,3268.6,8.98]
[1734922238493,0.04961706,3269.5,3268.6,8.98]
[1734922238697,0.8135,3269.6,3268.6,8.98]
[1734922238895,3.05889,3269.2,3268.6,8.98]
[1734922239103,0.8135,3269.6,3268.6,8.98]
[1734922239303,0.8135,3269.6,3268.5,0.7626]
[1734922239304,3.05904,3269.0,3268.5,0.7626]
[1734922239713,0.04793714,3268.9,3268.5,0.7626]
[1734922240406,0.04793714,3268.9,3268.1,0.793]
[1734922240793,3.05939,3268.7,3268.1,0.793]
[1734922241405,0.04838037,3268.6,3268.1,0.793]
[1734922241794,3.05923,3268.8,3268.1,0.793]
[1734922242290,0.04838037,3268.7,3268.1,0.793]
[1734922242510,3.05925,3268.8,3268.1,0.793]
[1734922242705,0.04838037,3268.7,3268.1,0.793]
[1734922242909,3.10771037,3268.7,3268.1,0.793]
[1734922243421,0.04838037,3268.7,3268.1,0.793]
[1734922243828,3.05924,3268.8,3268.1,0.793]
[1734922243994,0.04838037,3268.6,3268.1,0.793]
[1734922244195,0.04802977,3268.7,3268.1,0.793]
[1734922244401,3.05905,3269.0,3268.1,0.793]
[1734922244650,0.04802977,3268.6,3268.1,0.793]
[1734922244829,3.05905,3269.0,3268.1,0.793]
[1734922245125,0.04802977,3268.9,3268.3,12.86214]
[1734922245350,3.98138614,3270.7,3268.6,0.8225]
[1734922245351,5.86436958,3270.7,3268.6,0.8225]
[1734922245641,3.05777,3270.4,3269.1,3.05891]
[1734922245854,0.04804301,3270.6,3269.3,12.86655]
[1734922246031,4.94049344,3270.7,3269.3,12.86655]
[1734922246191,0.04804301,3270.5,3269.6,0.8278]
[1734922246386,0.04859206,3270.6,3269.7,0.98078]
[1734922246617,3.05727,3270.9,3269.6,0.8278]
[1734922246826,0.04859206,3270.5,3269.6,0.8278]